bitfinex-derivatives/quotes_ETHF0:USTF0_20250708
["timestamp","ask_amount","ask_price","bid_price","bid_amount"]
[1751983203154,7.31905842,2589.0,2588.7,3.8528]
[1751983203155,1.7573,2589.0,2588.7,3.8528]
[1751983203455,0.77244,2588.8,2588.7,3.8528]
[1751983204852,1.7573,2589.0,2588.7,3.95842232]
[1751983205047,0.7723,2589.3,2588.9,0.10562232]
[1751983205247,0.7723,2589.3,2589.2,0.10562232]
[1751983205449,1.466,2589.3,2589.2,0.10562232]
[1751983205751,0.6937,2589.3,2589.2,0.87794232]
[1751983205952,1.46599,2589.3,2589.2,0.10562232]
[1751983206155,0.77229,2589.3,2589.2,0.10562232]
[1751983206350,3.2078,2589.4,2589.2,0.75062232]
[1751983206657,0.77229,2589.3,2589.2,0.645]
[1751983207051,3.2078,2589.7,2589.2,5.75062232]
[1751983207253,3.97997,2589.7,2589.6,0.10562232]
[1751983207558,6.07520139,2589.7,2589.6,0.10562232]
[1751983207955,4.67367,2589.7,2589.6,1.52282232]
[1751983208463,1.40420943,2589.7,2589.6,2.48842232]
[1751983208757,0.77217,2589.7,2589.6,2.48840232]
[1751983208950,1.46587,2589.7,2589.6,0.75062232]
[1751983209356,5.04333369,2589.7,2589.2,3.2078]
[1751983209657,0.77229,2589.3,2589.2,4.9457]
[1751983209851,0.77217,2589.7,2589.6,0.10562232]
[1751983210052,1.40589247,2589.7,2589.6,1.52282232]
[1751983210259,2.87176247,2589.7,2589.6,0.75062232]
[1751983210460,2.09959247,2589.7,2589.6,0.75062232]
[1751983210661,2.09959247,2589.7,2589.6,1.52282232]
[1751983210865,3.2078,2590.2,2589.7,0.77216]
[1751983211069,3.2078,2590.2,2590.0,0.10562232]
[1751983211070,2.17952646,2590.1,2590.0,0.10562232]
[1751983211263,3.88802646,2590.1,2590.0,0.10562232]
[1751983211572,0.77213,2589.9,2589.7,0.77214]
[1751983211763,0.6937,2589.9,2589.8,1.41714]
[1751983211958,0.6937,2589.9,2589.8,0.10562232]
[1751983212163,2.87388898,2589.9,2589.8,0.10562232]
[1751983212360,2.10177898,2589.9,2589.8,0.87776232]
[1751983212772,2.10177898,2589.9,2589.8,1.52276232]
[1751983213368,2.87388898,2589.9,2589.8,1.52276232]
[1751983213768,2.10177898,2589.9,2589.8,1.52276232]
[1751983213978,2.87388898,2589.9,2589.8,1.52276232]
[1751983214572,2.10177898,2589.9,2589.8,1.52276232]
[1751983215271,1.40807898,2589.9,2589.8,1.52276232]
[1751983215467,2.66052,2590.3,2590.2,0.77202]
[1751983215674,4.75989566,2590.3,2590.2,0.87764232]
[1751983215971,4.75989566,2590.3,2590.2,1.52264232]
[1751983216172,2.09937566,2590.3,2590.2,1.52264232]
[1751983216670,0.6937,2590.3,2590.2,1.52264232]
[1751983216872,1.46569,2590.3,2590.2,0.10562232]
[1751983217073,0.77206,2590.1,2590.0,0.77208]
[1751983217270,1.46576,2590.1,2590.0,0.77208]
[1751983217471,1.46576,2590.1,2590.0,0.75062232]
[1751983217670,2.48056,2590.1,2590.0,0.75062232]
[1751983217866,0.6937,2590.1,2590.0,1.52270232]
[1751983218270,1.46575,2590.1,2590.0,1.52270232]
[1751983219675,1.46575,2590.1,2590.0,0.75062232]
[1751983220072,0.77215,2589.8,2589.5,5.133]
[1751983220272,0.6937,2589.8,2589.5,5.133]
[1751983220472,0.6937,2589.8,2589.5,3.2078]
[1751983220473,0.7722,2589.6,2589.5,3.2078]
[1751983220674,2.4647,2589.6,2589.5,3.31342232]
[1751983220873,1.4499,2589.6,2589.5,3.94872232]
[1751983221175,1.4499,2589.6,2589.5,3.8431]
[1751983222174,0.77229,2589.3,2589.1,3.98013]
[1751983222374,0.6777,2589.3,2589.2,1.40762]
[1751983222578,2.65305,2589.5,2589.3,0.77229]
[1751983222777,0.6777,2589.4,2589.3,0.77229]
[1751983222982,1.44996,2589.4,2589.3,1.40759]
[1751983223171,1.44996,2589.4,2589.3,0.10562232]
[1751983223677,1.44996,2589.4,2589.3,0.74092232]
[1751983223877,1.44996,2589.4,2589.3,0.10562232]
[1751983224374,1.44996,2589.4,2589.3,0.74092232]
[1751983224573,1.44996,2589.4,2589.3,0.10562232]
[1751983224778,2.49476,2589.4,2589.3,0.10562232]
[1751983224976,2.49476,2589.4,2588.8,3.2078]
[1751983224977,10.40879,2589.4,2588.8,3.2078]
[1751983225178,1.93089,2589.1,2588.8,0.10562232]
[1751983225476,1.45011,2588.9,2588.8,0.10562232]
[1751983225879,1.45011,2588.9,2588.5,17.07018706]
[1751983225880,0.7725,2588.6,2588.5,8.57618706]
[1751983226075,0.77248,2588.7,2588.5,9.98400706]
[1751983226274,0.77248,2588.7,2588.6,0.10562232]
[1751983226475,1.45018,2588.7,2588.6,0.74092232]
[1751983226979,1.45017,2588.7,2588.6,0.10562232]
[1751983227179,1.45017,2588.7,2588.6,0.74092232]
[1751983228479,1.45017,2588.7,2588.6,1.51342232]
[1751983228871,0.77247,2588.7,2588.6,0.74092232]
[1751983229072,0.77241,2589.0,2588.9,0.77241]
[1751983229279,3.2078,2589.3,2588.9,7.26878074]
[1751983229476,3.2078,2589.3,2589.2,0.87794232]
[1751983229682,3.2078,2589.3,2589.2,2.47934232]
[1751983229881,0.77224,2589.5,2589.2,7.26878074]
[1751983230178,0.77226,2589.4,2589.3,3.50438]
[1751983230379,1.44996,2589.4,2589.3,1.40759]
[1751983230676,1.44996,2589.4,2589.3,0.74092232]
[1751983231179,1.44996,2589.4,2589.3,0.10562232]
[1751983231374,1.44996,2589.4,2589.3,0.74092232]
[1751983231571,1.44996,2589.4,2589.3,0.10562232]
[1751983231776,3.29916,2589.4,2589.3,0.10562232]
[1751983231972,2.62146,2589.4,2589.3,0.10562232]
[1751983232179,0.77226,2589.4,2589.3,0.10562232]
[1751983232376,1.44996,2589.4,2589.3,0.10562232]
[1751983232585,1.44996,2589.4,2589.3,0.74092232]
[1751983233482,1.44996,2589.4,2589.3,1.51321232]
[1751983233682,1.44996,2589.4,2589.3,0.74092232]
[1751983233884,1.44996,2589.4,2589.3,0.10562232]
[1751983234376,3.27236,2589.4,2589.3,0.10562232]
[1751983234578,4.31716,2589.4,2589.3,0.10562232]
[1751983235085,5.4756,2589.4,2588.9,0.7724]
[1751983235283,1.93089,2589.1,2588.5,7.28803818]
[1751983235483,3.6154,2589.0,2588.7,0.10562232]
[1751983235684,0.77242,2588.9,2588.8,0.77243]
[1751983235883,0.77242,2588.9,2588.8,1.51335232]
[1751983235884,0.6777,2588.9,2588.8,1.51335232]
[1751983236084,0.6777,2588.9,2588.8,1.40773]
[1751983236282,1.793,2589.0,2588.9,0.77241]
[1751983236476,0.77234,2589.2,2589.1,0.77234]
[1751983236675,0.6777,2589.2,2589.1,0.87796232]
[1751983237183,0.77235,2589.1,2589.0,2.55666]
[1751983237383,0.6777,2589.2,2589.1,0.87797232]
[1751983237683,0.6777,2589.2,2589.1,4.08577232]
[1751983238286,3.2078,2589.5,2589.4,0.77226]
[1751983238483,3.98003,2589.5,2589.4,0.87788232]
[1751983238985,3.2078,2589.5,2589.4,0.87788232]
[1751983239384,4.65773,2589.5,2589.4,0.87788232]
[1751983239586,4.65773,2589.5,2589.4,0.10562232]
[1751983239781,3.98003,2589.5,2589.4,0.10562232]
[1751983239982,4.65773,2589.5,2589.4,0.74092232]
[1751983240587,4.65773,2589.5,2589.4,0.10562232]
[1751983240786,4.65773,2589.5,2589.4,1.51318232]
[1751983240988,1.44993,2589.5,2589.4,1.51318232]
[1751983241188,0.77223,2589.5,2589.4,1.51318232]
[1751983241389,1.44993,2589.5,2589.4,1.51318232]
[1751983241788,1.44993,2589.5,2589.4,0.74092232]
[1751983242180,1.44993,2589.5,2589.4,1.51318232]
[1751983242687,0.77227,2589.4,2589.3,0.77227]
[1751983242989,0.6777,2589.5,2589.4,0.87788232]
[1751983242990,0.77225,2589.5,2589.4,0.87788232]
[1751983243183,0.77225,2589.5,2589.4,1.51318232]
[1751983243489,1.44995,2589.5,2589.4,1.51318232]
[1751983243691,1.44995,2589.5,2589.4,0.74092232]
[1751983243989,1.44995,2589.5,2589.4,1.51318232]
[1751983245291,0.6777,2589.5,2589.4,1.51318232]
[1751983245589,0.77223,2589.6,2589.5,0.77223]
[1751983245889,1.44993,2589.6,2589.5,0.74092232]
[1751983246591,0.77226,2589.4,2589.3,0.77227]
[1751983246788,1.44996,2589.4,2589.3,1.40757]
[1751983246986,1.44996,2589.4,2589.3,1.51319232]
[1751983247188,1.44996,2589.4,2589.3,0.10562232]
[1751983247386,1.44996,2589.4,2589.3,1.51321232]
[1751983247589,1.44996,2589.4,2589.3,0.74092232]
[1751983247986,0.6777,2589.4,2589.3,1.51321232]
[1751983248182,3.71107,2589.8,2589.3,1.70702232]
[1751983248383,0.77222,2589.6,2589.5,0.87784232]
[1751983248586,1.44992,2589.6,2589.5,0.74092232]
[1751983249886,0.77222,2589.6,2589.5,1.51315232]
[1751983250089,0.7722,2589.6,2589.5,1.51313232]
[1751983250390,1.4453,2589.6,2589.5,0.74092232]
[1751983250989,1.4453,2589.6,2589.5,0.75282232]
[1751983251293,1.4453,2589.6,2589.5,0.10562232]
[1751983251993,0.7722,2589.6,2589.5,0.10562232]
[1751983252287,1.93059,2589.5,2589.1,5.50373818]
[1751983252587,2.69173,2589.5,2589.4,0.10562232]
[1751983252788,3.36483,2589.5,2589.4,0.75282232]
[1751983253089,0.77232,2589.2,2589.1,5.50373818]
[1751983253291,1.44542,2589.2,2589.1,6.15093818]
[1751983253485,1.44542,2589.2,2589.1,6.2565605]
[1751983253796,0.77232,2589.2,2589.1,7.0289105]
[1751983254195,1.44542,2589.2,2589.1,7.0289105]
[1751983254394,1.44542,2589.2,2589.1,8.0638105]
[1751983254597,0.77231,2589.3,2589.2,0.77229]
[1751983254891,0.77231,2589.3,2589.2,7.52894272]
[1751983255091,0.77228,2589.4,2589.3,0.77226]
[1751983255393,0.77228,2589.4,2589.3,2.45436]
[1751983255594,0.77228,2589.4,2589.3,2.55998232]
[1751983255791,0.77226,2589.5,2589.4,0.77223]
[1751983255991,0.77226,2589.5,2589.4,4.48012222]
[1751983256197,2.57663,2589.6,2589.5,0.77223]
[1751983256395,3.24973,2589.6,2589.5,1.52505232]
[1751983256694,2.57663,2589.6,2589.5,1.52505232]
[1751983256896,3.24973,2589.6,2589.5,0.75282232]
[1751983257500,3.24973,2589.6,2589.5,0.10562232]
[1751983257696,3.24973,2589.6,2589.5,0.75282232]
[1751983258192,3.24973,2589.6,2589.5,1.52505232]
[1751983258593,3.24973,2589.6,2589.5,0.75282232]
[1751983260195,4.63764167,2589.6,2589.5,0.75282232]
[1751983260501,4.83141167,2589.6,2589.1,3.2078]
[1751983260798,0.77232,2589.2,2589.1,3.98015]
[1751983260999,1.44542,2589.2,2589.1,3.96062232]
[1751983261197,1.6391,2589.2,2588.8,3.44308706]
[1751983261403,0.77244,2588.8,2588.7,3.44308706]
[1751983261591,0.77247,2588.7,2588.6,3.44308706]
[1751983261797,3.34147,2588.7,2588.6,3.54870938]
[1751983262097,0.77247,2588.7,2588.6,4.09028706]
[1751983262297,0.77247,2588.7,2588.5,0.77251]
[1751983262490,1.44557,2588.7,2588.6,0.75282232]
[1751983262898,3.2078,2589.0,2588.6,10.79040561]
[1751983263097,7.62722017,2589.7,2588.9,7.59547831]
[1751983263298,0.77229,2589.3,2589.2,5.66448831]
[1751983263493,1.44539,2589.3,2589.2,0.75282232]
[1751983263702,3.02762752,2589.3,2588.8,3.2078]
[1751983263898,0.77235,2589.1,2589.0,0.10562232]
[1751983264098,2.83397752,2589.1,2589.0,0.10562232]
[1751983264393,0.77241,2588.9,2588.8,3.2078]
[1751983264797,1.44551,2588.9,2588.8,3.96062232]
[1751983264993,1.44551,2588.9,2588.7,1.9045]
[1751983264994,3.57019,2588.9,2588.5,3.2078]
[1751983265202,0.7725,2588.6,2588.5,3.2078]
[1751983265396,1.4456,2588.6,2588.5,3.855]
[1751983265598,1.4456,2588.6,2588.5,0.75282232]
[1751983266297,0.77249,2588.7,2588.5,4.99552232]
[1751983266504,0.77247,2588.7,2588.6,0.10562232]
[1751983266696,0.77247,2588.7,2588.6,0.75282232]
[1751983266891,0.77247,2588.7,2588.6,0.6472]
[1751983267097,1.44557,2588.7,2588.6,0.6472]
[1751983268005,1.93141,2588.5,2588.0,3.2078]
[1751983268306,1.93141,2588.5,2587.6,3.4438173]
[1751983268307,0.77274,2587.8,2587.7,3.2078]
[1751983268497,0.77274,2587.8,2587.7,3.855]
[1751983268702,0.77274,2587.8,2587.7,3.96062232]
[1751983269499,1.815,2588.2,2587.7,3.96062232]
[1751983269704,1.815,2588.2,2587.8,0.10562232]
[1751983269705,0.77271,2587.9,2587.8,0.10562232]
[1751983270202,1.93171,2588.0,2587.4,3.2078]
[1751983270397,0.7728,2587.6,2587.5,0.10562232]
[1751983270602,0.7728,2587.6,2587.5,0.75282232]
[1751983270803,3.2078,2588.4,2587.5,0.75282232]
[1751983271001,3.2078,2588.4,2587.9,0.10562232]
[1751983271002,1.93156,2588.2,2587.9,0.10562232]
[1751983271204,0.77268,2588.0,2587.9,0.10562232]
[1751983271406,1.7738,2588.2,2587.9,0.6472]
[1751983271607,0.77257,2588.4,2588.2,0.7726]
[1751983271812,2.7398,2588.6,2588.4,0.77256]
[1751983272006,0.7725,2588.6,2588.5,0.10562232]
[1751983272207,1.4456,2588.6,2588.5,0.75282232]
[1751983272408,0.7725,2588.6,2588.5,0.10562232]
[1751983272710,0.7725,2588.6,2588.4,0.77256]
[1751983272711,0.6731,2588.6,2588.2,2.9111]
[1751983272905,0.77256,2588.4,2588.3,0.10562232]
[1751983273203,0.6731,2588.4,2588.0,0.77267]
[1751983273405,0.6731,2588.4,2587.8,4.2427]
[1751983273406,0.77268,2588.0,2587.8,3.2078]
[1751983273606,0.77267,2588.1,2587.9,1.41991]
[1751983273805,1.44578,2588.0,2587.9,1.41991]
[1751983274007,0.77271,2587.9,2587.8,3.2078]
[1751983274209,0.77271,2587.9,2587.8,3.31342232]
[1751983274512,4.40491,2587.9,2587.8,3.31342232]
[1751983274903,4.40491,2587.9,2587.8,3.2078]
[1751983275405,5.37091,2587.9,2587.8,3.2078]
[1751983275708,4.40491,2587.9,2587.8,3.2078]
[1751983275908,5.37091,2587.9,2587.8,3.2078]
[1751983276309,4.40491,2587.9,2587.8,3.2078]
[1751983277208,3.27281,2587.9,2587.8,3.2078]
[1751983277913,4.23881,2587.9,2587.8,3.2078]
[1751983278215,0.77283,2587.5,2587.4,1.7699]
[1751983278407,1.44593,2587.5,2587.4,2.4171]
[1751983278606,1.44593,2587.5,2587.4,2.52272232]
[1751983279011,1.44593,2587.5,2587.4,1.7699]
[1751983279312,0.77295,2587.1,2587.0,0.77297]
[1751983279512,0.77298,2587.0,2586.9,3.31342232]
[1751983279807,1.7601,2587.0,2586.9,3.2078]
[1751983280014,1.9325,2587.4,2586.9,3.2078]
[1751983280015,3.86467,2587.4,2586.9,3.2078]
[1751983280316,1.7601,2587.3,2587.2,0.10562232]
[1751983280615,0.77289,2587.3,2587.2,0.10562232]
[1751983280814,7.49136599,2587.4,2586.9,3.2078]
[1751983281009,0.77297,2587.1,2587.0,0.10562232]
[1751983281309,0.77298,2587.0,2586.9,3.2078]
[1751983281813,0.77298,2587.0,2586.9,3.31342232]
[1751983282114,0.77298,2587.0,2586.9,3.2078]
[1751983282312,1.9325,2587.4,2586.9,4.28502232]
[1751983282517,1.9325,2587.4,2587.1,0.10562232]
[1751983282710,0.77298,2587.0,2586.9,3.2078]
[1751983283211,0.77298,2587.0,2586.9,3.31342232]
[1751983283411,0.77298,2587.0,2586.9,3.2078]
[1751983284019,2.7958,2587.3,2586.9,3.2078]
[1751983284319,0.77298,2587.0,2586.9,3.2078]
[1751983284616,1.8,2587.3,2586.9,3.31342232]
[1751983284820,0.77292,2587.2,2587.1,0.10562232]
[1751983285117,1.43262,2587.2,2587.1,0.10562232]
[1751983285416,0.77296,2587.1,2586.9,3.98081]
[1751983285611,0.77296,2587.1,2587.0,0.6563]
[1751983285813,1.43266,2587.1,2587.0,0.76192232]
[1751983286015,0.77304,2586.8,2586.7,1.8911]
[1751983286317,1.43274,2586.8,2586.7,2.5474]
[1751983286615,0.77316,2586.4,2586.3,3.2078]
[1751983286818,0.77316,2586.4,2586.3,3.31342232]
[1751983287119,0.77323,2586.2,2585.9,3.98109]
[1751983287411,0.77323,2586.2,2586.1,0.10562232]
[1751983288119,3.84412,2586.4,2585.9,3.98108]
[1751983288415,3.84412,2586.4,2586.1,0.10562232]
[1751983288416,0.77322,2586.2,2586.1,0.10562232]
[1751983288811,0.77328,2586.0,2585.9,3.2078]
[1751983289214,0.77328,2586.0,2585.9,3.31342232]
[1751983289408,0.77328,2586.0,2585.9,3.2078]
[1751983289613,7.00351,2586.3,2585.8,1.8748]
[1751983289614,0.77331,2585.9,2585.8,1.8748]
[1751983289817,0.77331,2585.9,2585.8,5.0826]
[1751983290017,0.77331,2585.9,2585.8,5.18822232]
[1751983290215,1.9112,2586.4,2585.8,5.18822232]
[1751983290417,1.9112,2586.4,2585.8,5.0826]
[1751983290614,0.77325,2586.1,2586.0,0.10562232]
[1751983290818,0.77324,2586.2,2586.0,0.87890232]
[1751983291111,0.77322,2586.2,2586.1,0.10562232]
[1751983291310,0.77331,2585.9,2585.8,5.0826]
[1751983291511,0.77329,2586.0,2585.9,0.77331]
[1751983291915,0.77323,2586.2,2585.9,0.10562232]
[1751983292110,0.77323,2586.2,2586.1,0.10562232]
[1751983292414,1.9112,2586.4,2586.2,0.77321]
[1751983292613,0.7732,2586.3,2586.2,0.10562232]
[1751983293014,0.7732,2586.3,2586.2,0.87884232]
[1751983293215,3.2078,2586.6,2586.2,0.10562232]
[1751983293513,3.98092,2586.6,2586.5,0.77313]
[1751983293715,3.98092,2586.6,2586.5,0.10562232]
[1751983293913,0.77312,2586.6,2586.5,0.10562232]
[1751983294512,0.9958,2586.8,2586.7,0.77307]
[1751983294718,3.2078,2587.2,2586.9,0.773]
[1751983294915,0.77297,2587.1,2587.0,0.77296]
[1751983295111,0.77294,2587.2,2587.1,0.87855232]
[1751983295624,5.13983,2587.6,2587.1,6.63608831]
[1751983295921,0.77283,2587.5,2587.4,0.10562232]
[1751983296310,0.77298,2587.0,2586.9,4.1794]
[1751983296713,0.77298,2587.0,2586.9,4.28502232]
[1751983296918,0.77298,2587.0,2586.9,5.05803232]
[1751983297115,0.77298,2587.0,2586.9,4.28502232]
[1751983297514,0.77298,2587.0,2586.9,3.31342232]
[1751983299224,0.77298,2587.0,2586.9,0.10562232]
[1751983300320,0.77306,2586.8,2586.7,0.77307]
[1751983300522,5.0752,2587.3,2586.9,0.87861232]
[1751983300820,0.77296,2587.1,2586.9,1.7446]
[1751983301124,1.7469,2587.4,2587.2,0.87851232]
[1751983301330,3.71621,2587.9,2587.3,6.63608831]
[1751983301622,0.77281,2587.6,2587.4,1.8488]
[1751983301822,0.77283,2587.5,2587.4,2.8204]
[1751983302019,0.77283,2587.5,2587.4,1.8488]
[1751983302225,0.77283,2587.5,2587.4,2.92602232]
[1751983303322,1.93183,2587.9,2587.4,3.69886232]
[1751983303520,3.2078,2588.0,2587.7,0.10562232]
[1751983303826,3.98048,2588.0,2587.9,0.10562232]
[1751983304024,3.98048,2588.0,2587.9,1.88482232]
[1751983304524,3.98048,2588.0,2587.9,2.85642232]
[1751983304724,0.77268,2588.0,2587.9,6.06422232]
[1751983305119,0.77268,2588.0,2587.9,5.09262232]
[1751983305426,6.13463,2589.0,2587.9,16.62308831]
[1751983305627,0.77253,2588.5,2588.4,0.10562232]
[1751983305925,0.77265,2588.1,2588.0,3.2078]
[1751983306324,0.77265,2588.1,2588.0,4.28502232]
[1751983307223,0.77265,2588.1,2587.7,8.459]
[1751983307224,1.93156,2588.2,2587.7,3.2078]
[1751983307528,0.77274,2587.8,2587.7,3.2078]
[1751983307725,0.77283,2587.5,2587.4,3.2078]
[1751983307923,1.93183,2587.9,2587.4,3.2078]
[1751983308230,0.77283,2587.5,2587.4,3.2078]
[1751983308623,0.77283,2587.5,2587.0,5.0454]
[1751983308624,0.77295,2587.1,2587.0,5.0454]
[1751983308825,0.77295,2587.1,2587.0,3.2078]
[1751983309524,0.77306,2586.8,2586.6,3.2078]
[1751983309718,0.77306,2586.8,2586.7,0.10562232]
[1751983309719,0.77304,2586.8,2586.7,0.10562232]
[1751983310227,0.773,2587.0,2586.7,1.85028232]
[1751983310416,0.77296,2587.1,2586.9,0.87862232]
[1751983310621,0.77298,2587.0,2586.9,3.2078]
[1751983311028,0.77298,2587.0,2586.9,3.31342232]
[1751983311733,0.77298,2587.0,2586.9,1.07722232]
[1751983312120,0.77298,2587.0,2586.9,0.10562232]
[1751983312330,0.77298,2587.1,2586.9,1.11162232]
[1751983312532,0.77298,2587.0,2586.9,0.77299]
[1751983312732,0.77298,2587.0,2586.9,0.10562232]
[1751983314129,0.77298,2587.0,2586.9,1.88463232]
[1751983314324,0.77298,2587.0,2586.9,5.09243232]
[1751983314834,1.8948,2587.3,2586.9,4.31942232]
[1751983315033,0.77289,2587.3,2587.2,0.10562232]
[1751983315536,0.77298,2587.0,2586.9,3.2078]
[1751983315730,0.77298,2587.0,2586.9,3.98081]
[1751983315929,0.77298,2587.0,2586.9,5.09243232]
[1751983316530,0.77295,2587.1,2587.0,0.77297]
[1751983316730,0.77295,2587.1,2587.0,1.77897]
[1751983316930,0.77295,2587.1,2587.0,1.11162232]
[1751983317228,0.77295,2587.1,2587.0,0.10562232]
[1751983317534,0.77295,2587.1,2587.0,0.79312232]
[1751983317735,1.43545,2587.1,2587.0,0.79312232]
[1751983318135,0.77295,2587.1,2587.0,1.79912232]
[1751983318636,3.77737,2587.4,2587.3,0.77286]
[1751983318637,0.77288,2587.4,2587.3,0.77286]
[1751983318831,0.77285,2587.5,2587.4,0.77284]
[1751983319136,0.77285,2587.5,2587.4,1.56596232]
[1751983319336,0.77285,2587.5,2587.4,1.79912232]
[1751983319631,1.43535,2587.5,2587.4,0.79312232]
[1751983320133,1.43535,2587.5,2587.4,0.10562232]
[1751983320335,0.77295,2587.1,2587.0,0.77298]
[1751983320532,0.77295,2587.1,2587.0,0.6875]
[1751983320834,0.77305,2586.8,2586.7,0.77305]
[1751983321031,0.77305,2586.8,2586.7,2.46655]
[1751983321232,0.773,2587.0,2586.9,0.773]
[1751983321430,1.4355,2587.0,2586.9,0.79312232]
[1751983321630,1.4355,2587.0,2586.9,0.10562232]
[1751983321935,1.4355,2587.0,2586.6,3.2078]
[1751983321936,0.77307,2586.7,2586.6,3.2078]
[1751983322335,0.77307,2586.7,2586.6,3.31342232]
[1751983322628,0.77316,2586.4,2586.3,3.2078]
[1751983322930,1.9329,2586.4,2585.9,3.2078]
[1751983323132,0.77328,2586.0,2585.9,3.31342232]
[1751983323435,0.77328,2586.0,2585.9,3.2078]
[1751983323738,1.8724,2586.3,2585.9,3.31342232]
[1751983324033,0.77323,2586.2,2586.1,0.10562232]
[1751983324731,0.77323,2586.2,2586.1,0.87887232]
[1751983324936,0.77322,2586.2,2586.1,0.10562232]
[1751983326040,0.77322,2586.2,2586.1,5.66448831]
[1751983326638,0.77322,2586.2,2586.1,0.10562232]
[1751983326835,1.93284,2586.5,2585.9,3.2078]
[1751983326836,0.77328,2586.0,2585.9,3.2078]
[1751983327340,0.77328,2586.0,2585.9,3.31342232]
[1751983327641,0.77337,2585.7,2585.6,3.2078]
[1751983328042,0.77337,2585.7,2585.6,3.31342232]
[1751983328539,0.77337,2585.7,2585.6,4.08682232]
[1751983328840,0.77337,2585.7,2585.6,3.31342232]
[1751983329242,0.77335,2585.8,2585.7,0.77335]
[1751983329437,1.8785,2585.9,2585.8,0.87896232]
[1751983329831,3.31431,2585.9,2585.8,0.79312232]
[1751983330037,5.06371,2585.9,2585.8,0.10562232]
[1751983330343,0.77326,2586.1,2585.9,0.77329]
[1751983330539,1.7494,2586.2,2586.0,1.56640232]
[1751983330735,1.43575,2586.1,2585.9,0.77329]
[1751983330941,0.77325,2586.1,2586.0,0.6875]
[1751983331243,1.43575,2586.1,2586.0,0.79312232]
[1751983331644,0.77331,2585.9,2585.8,0.77332]
[1751983331841,0.6625,2585.9,2585.8,1.46082]
[1751983332144,0.77331,2585.9,2585.8,0.10562232]
[1751983332444,0.77331,2585.9,2585.8,0.87896232]
[1751983332643,0.7733,2586.0,2585.8,1.56646232]
[1751983332843,1.43581,2585.9,2585.8,0.6875]
[1751983333145,1.43581,2585.9,2585.8,0.79312232]
[1751983333342,1.43581,2585.9,2585.8,0.10562232]
[1751983333640,0.77326,2586.1,2585.8,0.79312232]
[1751983333840,3.2078,2586.3,2586.2,0.77322]
[1751983334141,0.77326,2586.1,2586.0,0.10562232]
[1751983334843,0.77331,2585.9,2585.8,0.6875]
[1751983335044,0.77331,2585.9,2585.8,0.79312232]
[1751983335239,0.77331,2585.9,2585.8,0.6875]
[1751983335444,2.65871,2585.9,2585.8,0.6875]
[1751983336244,2.65871,2585.9,2585.8,0.77334]
[1751983336445,0.77337,2585.7,2585.6,3.2078]
[1751983336639,0.77337,2585.7,2585.6,3.8953]
[1751983336844,2.5479,2585.9,2585.6,4.00092232]
[1751983336845,0.77335,2585.8,2585.6,4.00092232]
[1751983337045,4.3545,2585.9,2585.7,0.10562232]
[1751983337245,1.8854,2585.9,2585.8,0.87896232]
[1751983337447,1.9235,2586.2,2585.8,0.10562232]
[1751983337657,0.77328,2586.0,2585.9,3.98109]
[1751983337948,0.77328,2586.0,2585.9,4.66859]
[1751983338142,0.77328,2586.0,2585.9,4.77421232]
[1751983338345,0.77328,2586.0,2585.9,5.00692232]
[1751983338539,1.43578,2586.0,2585.9,0.10562232]
[1751983338747,0.6625,2586.0,2585.6,4.98718]
[1751983338945,0.77331,2585.9,2585.8,0.10562232]
[1751983339145,1.43581,2585.9,2585.8,0.79312232]
[1751983339340,1.43581,2585.9,2585.8,1.56646232]
[1751983339649,0.77325,2586.1,2586.0,0.77326]
[1751983339948,0.77322,2586.2,2586.0,1.6935]
[1751983340143,0.77322,2586.2,2586.1,0.10562232]
[1751983340345,1.43572,2586.2,2586.1,0.78762232]
[1751983340746,1.43572,2586.2,2586.1,1.56087232]
[1751983341247,0.77322,2586.2,2586.1,1.79362232]
[1751983341450,0.77322,2586.2,2586.1,2.56685232]
[1751983341648,0.77322,2586.2,2586.1,1.79362232]
[1751983341847,1.41222,2586.2,2586.1,0.10562232]
[1751983342047,0.77322,2586.2,2586.1,0.10562232]
[1751983342247,0.77322,2586.2,2586.1,1.56087232]
[1751983342651,0.77321,2586.3,2586.2,0.77319]
[1751983342848,0.77321,2586.3,2586.2,1.45519]
[1751983343048,5.14049,2586.7,2586.2,1.82452232]
[1751983343347,5.14049,2586.7,2586.6,0.10562232]
[1751983343348,3.98087,2586.7,2586.6,0.10562232]
[1751983343548,4.61987,2586.7,2586.6,0.10562232]
[1751983343750,0.77313,2586.5,2586.4,0.77316]
[1751983343949,0.77313,2586.5,2586.4,1.45516]
[1751983344147,2.69055,2586.8,2586.7,0.77307]
[1751983344347,3.32955,2586.8,2586.7,0.78762232]
[1751983345056,3.32955,2586.8,2586.7,0.682]
[1751983345259,2.5565,2586.8,2586.7,0.682]
[1751983345955,1.7379,2587.0,2586.7,2.59757232]
[1751983346255,12.43567,2587.4,2587.1,0.77295]
[1751983346452,1.40312999,2587.3,2587.2,0.10562232]
[1751983346657,2.04212999,2587.3,2587.2,0.78762232]
[1751983346858,0.639,2587.3,2587.2,0.682]
[1751983347156,0.639,2587.3,2587.2,1.56054232]
[1751983347360,0.639,2587.3,2587.2,0.78762232]
[1751983347959,2.5094,2587.3,2587.2,0.78762232]
[1751983348558,3.28229,2587.3,2587.2,0.78762232]
[1751983348858,3.28229,2587.3,2587.2,0.682]
[1751983349062,0.77296,2587.1,2586.9,3.2078]
[1751983349262,0.639,2587.0,2586.9,3.8898]
[1751983349663,0.639,2587.0,2586.9,3.31342232]
[1751983349864,1.8749,2587.4,2586.9,5.03232232]
[1751983350060,1.8749,2587.4,2587.2,0.10562232]
[1751983350257,0.639,2587.3,2587.2,0.78762232]
[1751983350460,0.639,2587.3,2587.2,0.682]
[1751983350662,0.639,2587.3,2587.2,3.8898]
[1751983350862,0.639,2587.3,2587.2,4.66272]
[1751983351461,1.41189,2587.3,2587.2,3.2078]
[1751983351763,3.27461,2587.3,2586.8,3.2078]
[1751983352065,3.27459,2587.3,2587.2,0.682]